fUSD/lending_fUSD_20251210
["ID","MTS","AMOUNT","RATE_DAILY","PERIOD"]
[398090298,1765363882897,-500.0,0.00015616,2]
[398090299,1765363882906,-500.0,0.00015616,2]
[398090300,1765363882915,-500.0,0.00015616,2]
[398090301,1765363882924,-587.0,0.00015616,2]
[398090302,1765363882934,-500.0,0.00015616,2]
[398090303,1765363882943,-500.0,0.00015616,2]
[398090304,1765363882952,-500.0,0.00015616,2]
[398090305,1765363882965,-500.0,0.00015616,2]
[398090306,1765363882974,-500.0,0.00015616,2]
[398090307,1765363882983,-501.33,0.00015616,2]
[398090308,1765363882992,-500.0,0.00015616,2]
[398090309,1765363883002,-409.20516312,0.00015616,2]
[398090310,1765363883011,-332.16750245,0.00015616,2]
[398090311,1765363883020,-576.82,0.00015616,2]
[398090312,1765363883030,-456.19822402,0.00015616,2]
[398090313,1765363883040,-500.0,0.00015616,2]
[398090314,1765363883050,-500.0,0.00015616,2]
[398090315,1765363883059,-500.0,0.00015616,2]
[398090316,1765363883068,-500.0,0.00015616,2]
[398090317,1765363883078,-500.0,0.00015616,2]
[398090318,1765363883087,-532.94,0.00015616,2]
[398090319,1765363883097,-526.76,0.00015616,2]
[398090320,1765363883106,-685.62,0.00015616,2]
[398090321,1765363883115,-500.0,0.00015616,2]
[398090322,1765363883125,-500.0,0.00015616,2]
[398090323,1765363883134,-778.96,0.00015616,2]
[398090324,1765363883143,-500.0,0.00015616,2]
[398090325,1765363883153,-500.0,0.00015616,2]
[398090326,1765363883162,-500.0,0.00015616,2]
[398090327,1765363883172,-500.0,0.00015616,2]
[398090328,1765363883181,-594.25,0.00015616,2]
[398090329,1765363883192,-500.0,0.00015616,2]
[398090330,1765363883201,-374.42041891,0.00015616,2]
[398090331,1765363883210,-695.24,0.00015616,2]
[398090332,1765363883220,-500.0,0.00015616,2]
[398090333,1765363883229,-500.0,0.00015616,2]
[398090334,1765363883238,-500.0,0.00015616,2]
[398090335,1765363883249,-500.0,0.00015616,2]
[398090336,1765363883258,-500.0,0.00015616,2]
[398090337,1765363883267,-500.0,0.00015616,2]
[398090338,1765363883276,-571.54,0.00015616,2]
[398090339,1765363883285,-500.0,0.00015616,2]
[398090340,1765363883294,-610.13952984,0.00015616,2]
[398090341,1765363883304,-500.0,0.00015616,2]
[398090342,1765363883313,-159.97663296,0.00015616,2]
[398090343,1765363883322,-500.0,0.00015616,2]
[398090344,1765363883331,-500.0,0.00015616,2]
[398090345,1765363883340,-500.0,0.00015616,2]
[398090346,1765363883350,-537.71,0.00015616,2]
[398090347,1765363883359,-500.0,0.00015616,2]
[398090348,1765363883368,-500.0,0.00015616,2]
[398090349,1765363883378,-500.0,0.00015616,2]
[398090350,1765363883387,-526.55,0.00015616,2]
[398090351,1765363883397,-622.54,0.00015616,2]
[398090352,1765363883406,-622.02065447,0.00015616,2]
[398090353,1765363883415,-500.0,0.00015616,2]
[398090354,1765363883424,-500.0,0.00015616,2]
[398090355,1765363883432,-569.43,0.00015616,2]
[398090356,1765363883441,-500.0,0.00015616,2]
[398090357,1765363883451,-500.0,0.00015616,2]
[398090358,1765363883459,-614.97,0.00015616,2]
[398090359,1765363883468,-500.0,0.00015616,2]
[398090360,1765363883477,-500.0,0.00015616,2]
[398090361,1765363883487,-500.0,0.00015616,2]
[398090362,1765363883497,-500.0,0.00015616,2]
[398090363,1765363883506,-500.0,0.00015616,2]
[398090364,1765363883515,-500.0,0.00015616,2]
[398090365,1765363883524,-500.0,0.00015616,2]
[398090366,1765363883534,-500.0,0.00015616,2]
[398090367,1765363883543,-500.0,0.00015616,2]
[398090368,1765363883552,-500.0,0.00015616,2]
[398090369,1765363883561,-521.75,0.00015616,2]
[398090370,1765363883571,-691.35,0.00015616,2]
[398090371,1765363883580,-500.0,0.00015616,2]
[398090372,1765363883590,-500.0,0.00015616,2]
[398090373,1765363883600,-500.0,0.00015616,2]
[398090374,1765363883610,-831.61,0.00015616,2]
[398090375,1765363883619,-580.62,0.00015616,2]
[398090376,1765363883629,-607.34,0.00015616,2]
[398090377,1765363883638,-558.66,0.00015616,2]
[398090378,1765363883648,-243.82971133,0.00015616,2]
[398090379,1765363883658,-500.0,0.00015616,2]
[398090380,1765363883668,-500.0,0.00015616,2]
[398090381,1765363883678,-500.0,0.00015616,2]
[398090382,1765363883687,-687.2,0.00015616,2]
[398090383,1765363883698,-500.0,0.00015616,2]
[398090384,1765363883707,-697.92,0.00015616,2]
[398090385,1765363883717,-500.0,0.00015616,2]
[398090386,1765363883727,-663.24,0.00015616,2]
[398090387,1765363883736,-500.0,0.00015616,2]
[398090388,1765363883747,-500.0,0.00015616,2]
[398090389,1765363883758,-500.0,0.00015616,2]
[398090390,1765363883769,-632.86,0.00015616,2]
[398090391,1765363883779,-500.0,0.00015616,2]
[398090392,1765363883789,-500.0,0.00015616,2]
[398090393,1765363883800,-516.81,0.00015616,2]
[398090394,1765363883810,-528.53,0.00015616,2]
[398090395,1765363883820,-500.0,0.00015616,2]
[398090396,1765363883830,-588.94,0.00015616,2]
[398090397,1765363883841,-575.19,0.00015616,2]
[398090398,1765363883851,-550.51,0.00015616,2]
[398090399,1765363883862,-520.64,0.00015616,2]
[398090400,1765363883871,-500.0,0.00015616,2]
[398090401,1765363883881,-500.0,0.00015616,2]
[398090402,1765363883892,-1386.52,0.00015616,2]
[398090403,1765363883901,-500.0,0.00015616,2]
[398090404,1765363883911,-500.0,0.00015616,2]
[398090405,1765363883922,-500.0,0.00015616,2]
[398090406,1765363883931,-626.72,0.00015616,2]
[398090407,1765363883941,-540.35,0.00015616,2]
[398090408,1765363883951,-500.0,0.00015616,2]
[398090409,1765363883966,-500.0,0.00015616,2]
[398090410,1765363883976,-500.0,0.00015616,2]
[398090411,1765363883986,-500.0,0.00015616,2]
[398090412,1765363883997,-500.0,0.00015616,2]
[398090413,1765363884008,-500.0,0.00015616,2]
[398090414,1765363884017,-1096.94,0.00015616,2]
[398090415,1765363884027,-547.45,0.00015616,2]
[398090416,1765363884037,-1026.31,0.00015616,2]
[398090417,1765363884047,-500.0,0.00015616,2]
[398090418,1765363884057,-500.0,0.00015616,2]
[398090419,1765363884066,-224.64742646,0.00015616,2]
[398090420,1765363884076,-500.0,0.00015616,2]
[398090421,1765363884086,-500.0,0.00015616,2]
[398090422,1765363884095,-500.0,0.00015616,2]
[398090423,1765363884105,-851.24,0.00015616,2]
[398090424,1765363884114,-504.48,0.00015616,2]
[398090425,1765363884123,-500.0,0.00015616,2]
[398090426,1765363884133,-500.0,0.00015616,2]
[398090427,1765363884142,-500.0,0.00015616,2]
[398090428,1765363884151,-500.0,0.00015616,2]
[398090429,1765363884161,-522.11,0.00015616,2]
[398090430,1765363884170,-500.0,0.00015616,2]
[398090431,1765363884180,-500.0,0.00015616,2]
[398090432,1765363884189,-610.27,0.00015616,2]
[398090433,1765363884198,-500.0,0.00015616,2]
[398090434,1765363884208,-687.03,0.00015616,2]
[398090435,1765363884217,-500.0,0.00015616,2]
[398090436,1765363884226,-500.0,0.00015616,2]
[398090437,1765363884235,-500.0,0.00015616,2]
[398090438,1765363884245,-500.0,0.00015616,2]
[398090439,1765363884254,-500.0,0.00015616,2]
[398090440,1765363884264,-500.0,0.00015616,2]
[398090441,1765363884273,-500.0,0.00015616,2]
[398090442,1765363884282,-500.0,0.00015616,2]
[398090443,1765363884291,-500.0,0.00015616,2]
[398090444,1765363884300,-500.0,0.00015616,2]
[398090445,1765363884310,-500.0,0.00015616,2]
[398090446,1765363884318,-500.0,0.00015616,2]
[398090447,1765363884327,-500.0,0.00015616,2]
[398090448,1765363884336,-500.0,0.00015616,2]
[398090449,1765363884346,-500.0,0.00015616,2]
[398090450,1765363884355,-500.0,0.00015616,2]
[398090451,1765363884363,-500.0,0.00015616,2]
[398090452,1765363884372,-500.0,0.00015616,2]
[398090453,1765363884381,-500.0,0.00015616,2]
[398090454,1765363884395,-500.0,0.00015616,2]
[398090455,1765363884404,-500.0,0.00015616,2]
[398090456,1765363884414,-500.0,0.00015616,2]
[398090457,1765363884424,-500.0,0.00015616,2]
[398090458,1765363884433,-500.0,0.00015616,2]
[398090459,1765363884443,-500.0,0.00015616,2]
[398090460,1765363884452,-500.0,0.00015616,2]
[398090461,1765363884462,-500.0,0.00015616,2]
[398090462,1765363884472,-500.0,0.00015616,2]
[398090463,1765363884481,-500.0,0.00015616,2]
[398090464,1765363884492,-500.0,0.00015616,2]
[398090465,1765363884501,-500.0,0.00015616,2]
[398090466,1765363884511,-500.0,0.00015616,2]
[398090467,1765363884520,-500.0,0.00015616,2]
[398090468,1765363884530,-500.0,0.00015616,2]
[398090469,1765363884539,-500.0,0.00015616,2]
[398090470,1765363884548,-659.53,0.00015616,2]
[398090471,1765363884557,-500.0,0.00015616,2]
[398090472,1765363884566,-500.0,0.00015616,2]
[398090473,1765363884576,-500.0,0.00015616,2]
[398090474,1765363884585,-500.0,0.00015616,2]
[398090475,1765363884595,-500.0,0.00015616,2]
[398090476,1765363884604,-1423.99,0.00015616,2]
[398090477,1765363884614,-500.0,0.00015616,2]
[398090478,1765363884623,-605.66,0.00015616,2]
[398090479,1765363884633,-500.0,0.00015616,2]
[398090480,1765363884643,-500.0,0.00015616,2]
[398090481,1765363884652,-500.0,0.00015616,2]
[398090482,1765363884662,-500.0,0.00015616,2]
[398090483,1765363884672,-500.0,0.00015616,2]
[398090484,1765363884683,-500.0,0.00015616,2]
[398090485,1765363884695,-500.0,0.00015616,2]
[398090486,1765363884706,-500.0,0.00015616,2]
[398090487,1765363884716,-500.0,0.00015616,2]
[398090488,1765363884726,-500.0,0.00015616,2]
[398090489,1765363884737,-500.0,0.00015616,2]
[398090490,1765363884748,-500.0,0.00015616,2]
[398090491,1765363884759,-535.23,0.00015616,2]
[398090492,1765363884769,-500.0,0.00015616,2]
[398090493,1765363884779,-500.0,0.00015616,2]
[398090494,1765363884789,-500.0,0.00015616,2]
[398090495,1765363884799,-500.0,0.00015616,2]
[398090496,1765363884809,-500.0,0.00015616,2]
[398090497,1765363884818,-500.0,0.00015616,2]
[398090498,1765363884828,-500.0,0.00015616,2]
[398090499,1765363884838,-500.0,0.00015616,2]
[398090500,1765363884847,-500.0,0.00015616,2]
[398090501,1765363884859,-500.0,0.00015616,2]
[398090502,1765363884868,-500.0,0.00015616,2]
[398090503,1765363884878,-500.0,0.00015616,2]
[398090504,1765363884887,-500.0,0.00015616,2]
[398090505,1765363884898,-500.0,0.00015616,2]
[398090506,1765363884908,-500.0,0.00015616,2]
[398090507,1765363884917,-500.0,0.00015616,2]
[398090508,1765363884927,-500.0,0.00015616,2]
[398090509,1765363884937,-500.0,0.00015616,2]
[398090510,1765363884946,-500.0,0.00015616,2]
[398090511,1765363884956,-500.0,0.00015616,2]
[398090512,1765363884971,-500.0,0.00015616,2]
[398090513,1765363884981,-500.0,0.00015616,2]
[398090514,1765363884990,-500.0,0.00015616,2]
[398090515,1765363885000,-500.0,0.00015616,2]
[398090516,1765363885013,-500.0,0.00015616,2]
[398090517,1765363885023,-921.0,0.00015616,2]
[398090518,1765363885033,-943.64,0.00015616,2]
[398090519,1765363885044,-500.0,0.00015616,2]
[398090520,1765363885054,-605.73,0.00015616,2]
[398090521,1765363885064,-500.0,0.00015616,2]
[398090522,1765363885074,-694.43,0.00015616,2]
[398090523,1765363885083,-534.57,0.00015616,2]
[398090524,1765363885095,-500.0,0.00015616,2]
[398090525,1765363885105,-637.14,0.00015616,2]
[398090526,1765363885116,-500.0,0.00015616,2]
[398090527,1765363885126,-500.0,0.00015616,2]
[398090528,1765363885136,-500.0,0.00015616,2]
[398090529,1765363885146,-500.0,0.00015616,2]
[398090530,1765363885156,-500.0,0.00015616,2]
[398090531,1765363885165,-500.0,0.00015616,2]
[398090532,1765363885175,-1035.09,0.00015616,2]
[398090533,1765363885184,-500.0,0.00015616,2]
[398090534,1765363885193,-638.9,0.00015616,2]
[398090535,1765363885203,-500.0,0.00015616,2]
[398090536,1765363885213,-500.0,0.00015616,2]
[398090537,1765363885223,-590.56,0.00015616,2]
[398090538,1765363885233,-823.36,0.00015616,2]
[398090539,1765363885244,-500.0,0.00015616,2]
[398090540,1765363885254,-500.0,0.00015616,2]
[398090541,1765363885267,-610.31,0.00015616,2]
[398090542,1765363885277,-500.0,0.00015616,2]
[398090543,1765363885287,-500.0,0.00015616,2]
[398090544,1765363885297,-500.0,0.00015616,2]
[398090545,1765363885307,-500.0,0.00015616,2]
[398090546,1765363885319,-175.89052821,0.00015616,2]
[398090547,1765363885330,-620.79,0.00015616,2]
[398090548,1765363885339,-888.67,0.00015616,2]
[398090549,1765363885350,-500.0,0.00015616,2]
[398090550,1765363885361,-500.0,0.00015616,2]
[398090551,1765363885371,-500.0,0.00015616,2]
[398090552,1765363885381,-601.0,0.00015616,2]
[398090553,1765363885391,-500.0,0.00015616,2]
[398090554,1765363885401,-500.0,0.00015616,2]
[398090555,1765363885413,-619.05,0.00015616,2]
[398090556,1765363885424,-500.0,0.00015616,2]
[398090557,1765363885435,-500.0,0.00015616,2]
[398090558,1765363885444,-718.66,0.00015616,2]
[398090559,1765363885454,-500.0,0.00015616,2]
[398090560,1765363885464,-575.76,0.00015616,2]
[398090561,1765363885474,-522.38,0.00015616,2]
[398090562,1765363885483,-500.0,0.00015616,2]
[398090563,1765363885493,-500.0,0.00015616,2]
[398090564,1765363885503,-500.0,0.00015616,2]
[398090565,1765363885513,-500.0,0.00015616,2]
[398090566,1765363885523,-500.0,0.00015616,2]
[398090567,1765363885533,-528.5,0.00015616,2]
[398090568,1765363885543,-500.0,0.00015616,2]
[398090569,1765363885552,-500.0,0.00015616,2]
[398090570,1765363885562,-500.0,0.00015616,2]
[398090571,1765363885571,-500.0,0.00015616,2]
[398090572,1765363885581,-500.0,0.00015616,2]
[398090573,1765363885590,-500.0,0.00015616,2]
[398090574,1765363885600,-582.05,0.00015616,2]
[398090575,1765363885610,-500.0,0.00015616,2]
[398090576,1765363885619,-500.0,0.00015616,2]
[398090577,1765363885629,-1023.47,0.00015616,2]
[398090578,1765363885639,-500.0,0.00015616,2]
[398090579,1765363885649,-500.0,0.00015616,2]
[398090580,1765363885660,-500.0,0.00015616,2]
[398090581,1765363885670,-2989.18,0.00015616,2]
[398090582,1765363885680,-500.0,0.00015616,2]
[398090583,1765363885690,-555.46,0.00015616,2]
[398090584,1765363885701,-500.0,0.00015616,2]
[398090585,1765363885713,-500.0,0.00015616,2]
[398090586,1765363885724,-500.0,0.00015616,2]
[398090587,1765363885735,-1304.2,0.00015616,2]
[398090588,1765363885746,-382.87871864,0.00015616,2]
[398090589,1765363885756,-729.87,0.00015616,2]
[398090590,1765363885765,-2869.58,0.00015616,2]
[398090591,1765363885774,-500.0,0.00015616,2]
[398090592,1765363885783,-500.0,0.00015616,2]
[398090593,1765363885793,-500.0,0.00015616,2]
[398090594,1765363885803,-658.56,0.00015616,2]
[398090595,1765363885813,-500.0,0.00015616,2]
[398090596,1765363885823,-501.94,0.00015616,2]
[398090597,1765363885832,-500.0,0.00015616,2]
[398090598,1765363885842,-500.0,0.00015616,2]
[398090599,1765363885852,-500.0,0.00015616,2]
[398090600,1765363885862,-500.0,0.00015616,2]
[398090601,1765363885872,-500.0,0.00015616,2]
[398090602,1765363885883,-548.02,0.00015616,2]
[398090603,1765363885892,-500.0,0.00015616,2]
[398090604,1765363885902,-500.0,0.00015616,2]
[398090605,1765363885912,-500.0,0.00015616,2]
[398090606,1765363885922,-500.0,0.00015616,2]
[398090607,1765363885932,-500.0,0.00015616,2]
[398090608,1765363885942,-500.0,0.00015616,2]
[398090609,1765363885953,-970.77,0.00015616,2]
[398090610,1765363885966,-500.0,0.00015616,2]
[398090611,1765363885976,-1025.9,0.00015616,2]
[398090612,1765363885987,-566.51140905,0.00015616,2]
[398090613,1765363885998,-500.0,0.00015616,2]
[398090614,1765363886009,-540.25,0.00015616,2]
[398090615,1765363886019,-555.46,0.00015616,2]
[398090616,1765363886029,-500.0,0.00015616,2]
[398090617,1765363886040,-832.02,0.00015616,2]
[398090618,1765363886049,-500.0,0.00015616,2]
[398090619,1765363886058,-635.2,0.00015616,2]
[398090620,1765363886068,-500.0,0.00015616,2]
[398090621,1765363886079,-500.0,0.00015616,2]
[398090622,1765363886089,-515.11,0.00015616,2]
[398090623,1765363886098,-500.0,0.00015616,2]
[398090624,1765363886108,-520.93,0.00015616,2]
[398090625,1765363886119,-557.58,0.00015616,2]
[398090626,1765363886129,-695.06,0.00015616,2]
[398090627,1765363886139,-500.0,0.00015616,2]
[398090628,1765363886150,-500.0,0.00015616,2]
[398090629,1765363886160,-500.0,0.00015616,2]
[398090630,1765363886169,-762.87,0.00015616,2]
[398090631,1765363886180,-2138.7,0.00015616,2]
[398090632,1765363886190,-765.27,0.00015616,2]
[398090633,1765363886199,-1364.77,0.00015616,2]
[398090634,1765363886209,-572.05,0.00015616,2]
[398090635,1765363886219,-500.0,0.00015616,2]
[398090636,1765363886229,-500.0,0.00015616,2]
[398090637,1765363886238,-516.6,0.00015616,2]
[398090638,1765363886249,-500.0,0.00015616,2]
[398090639,1765363886259,-951.41,0.00015616,2]
[398090640,1765363886269,-679.67,0.00015616,2]
[398090641,1765363886278,-500.0,0.00015616,2]
[398090642,1765363886287,-718.05,0.00015616,2]
[398090643,1765363886297,-729.92,0.00015616,2]
[398090644,1765363886306,-500.0,0.00015616,2]
[398090645,1765363886316,-531.49,0.00015616,2]
[398090646,1765363886326,-500.0,0.00015616,2]
[398090647,1765363886335,-500.0,0.00015616,2]
[398090648,1765363886344,-503.74,0.00015616,2]
[398090649,1765363886354,-641.54,0.00015616,2]
[398090650,1765363886364,-1067.97,0.00015616,2]
[398090651,1765363886373,-500.0,0.00015616,2]
[398090652,1765363886383,-500.0,0.00015616,2]
[398090653,1765363886394,-539.19,0.00015616,2]
[398090654,1765363886404,-2594.14,0.00015616,2]
[398090655,1765363886415,-500.0,0.00015616,2]
[398090656,1765363886425,-500.0,0.00015616,2]
[398090657,1765363886434,-500.0,0.00015616,2]
[398090658,1765363886444,-241.81345946,0.00015616,2]
[398090659,1765363886455,-500.0,0.00015616,2]
[398090660,1765363886468,-545.18,0.00015616,2]
[398090661,1765363886479,-1000.0,0.00015616,2]
[398090662,1765363886490,-500.0,0.00015616,2]
[398090663,1765363886499,-1366.9,0.00015616,2]
[398090664,1765363886507,-500.0,0.00015616,2]
[398090665,1765363886518,-780.91,0.00015616,2]
[398090666,1765363886528,-500.0,0.00015616,2]
[398090667,1765363886538,-904.37,0.00015616,2]
[398090668,1765363886548,-500.0,0.00015616,2]
[398090669,1765363886557,-500.0,0.00015616,2]
[398090670,1765363886566,-500.0,0.00015616,2]
[398090671,1765363886576,-1011.3,0.00015616,2]
[398090672,1765363886585,-1977.85,0.00015616,2]
[398090673,1765363886595,-500.0,0.00015616,2]
[398090674,1765363886605,-500.0,0.00015616,2]
[398090675,1765363886615,-674.04,0.00015616,2]
[398090676,1765363886624,-530.92,0.00015616,2]
[398090677,1765363886634,-500.0,0.00015616,2]
[398090678,1765363886643,-515.73,0.00015616,2]
[398090679,1765363886653,-500.0,0.00015616,2]
[398090680,1765363886662,-500.0,0.00015616,2]
[398090681,1765363886671,-500.0,0.00015616,2]
[398090682,1765363886680,-618.95,0.00015616,2]
[398090683,1765363886689,-746.65,0.00015616,2]
[398090684,1765363886698,-500.0,0.00015616,2]
[398090685,1765363886708,-500.0,0.00015616,2]
[398090686,1765363886717,-500.0,0.00015616,2]
[398090687,1765363886726,-562.39,0.00015616,2]
[398090688,1765363886736,-514.85,0.00015616,2]
[398090689,1765363886746,-500.0,0.00015616,2]
[398090690,1765363886756,-594.84,0.00015616,2]
[398090691,1765363886766,-2704.59,0.00015616,2]
[398090692,1765363886776,-1311.95,0.00015616,2]
[398090693,1765363886785,-672.92,0.00015616,2]
[398090694,1765363886795,-500.0,0.00015616,2]
[398090695,1765363886805,-500.0,0.00015616,2]
[398090696,1765363887008,-500.0,0.00015616,2]
[398090697,1765363887019,-500.0,0.00015616,2]
[398090698,1765363887032,-536.09,0.00015616,2]
[398090699,1765363887043,-636.09,0.00015616,2]
[398090700,1765363887054,-500.0,0.00015616,2]
[398090701,1765363887065,-518.62,0.00015616,2]
[398090702,1765363887075,-500.0,0.00015616,2]
[398090703,1765363887085,-954.03026998,0.00015616,2]
[398090704,1765363887094,-2690.76,0.00015616,2]
[398090705,1765363887103,-500.0,0.00015616,2]
[398090706,1765363887113,-500.0,0.00015616,2]
[398090707,1765363887123,-539.25,0.00015616,2]
[398090708,1765363887132,-500.0,0.00015616,2]
[398090709,1765363887142,-669.46,0.00015616,2]
[398090710,1765363887151,-500.0,0.00015616,2]
[398090711,1765363887161,-500.0,0.00015616,2]
[398090712,1765363887171,-500.0,0.00015616,2]
[398090713,1765363887182,-500.0,0.00015616,2]
[398090714,1765363887192,-500.0,0.00015616,2]
[398090715,1765363887203,-500.0,0.00015616,2]
[398090716,1765363887213,-500.0,0.00015616,2]
[398090717,1765363887222,-522.23,0.00015616,2]
[398090718,1765363887235,-633.04,0.00015616,2]
[398090719,1765363887247,-500.0,0.00015616,2]
[398090720,1765363887257,-854.51,0.00015616,2]
[398090721,1765363887269,-500.0,0.00015616,2]
[398090722,1765363887279,-150.35574013,0.00015646,2]
[398090723,1765363887288,-195.1772435,0.00015675,2]
[398090724,1765363887297,-171.85,0.00015703,2]
[398090725,1765363887307,-1301.0,0.00015738,2]
[398090726,1765363887317,-1162.0,0.00015741,2]
[398090727,1765363887327,-2435.64011008,0.00015749,2]
[398090728,1765363887338,-174.72526909,0.00015749,2]
[398090729,1765363887349,-823.0,0.00015818,2]
[398090730,1765363887360,-154.87,0.0001582,2]
[398090731,1765363887369,-1162.0,0.00015878,2]
[398090732,1765363887379,-500.0,0.00015889,2]
[398090733,1765363887389,-500.0,0.0001589,2]
[398090734,1765363887398,-500.0,0.0001589,2]
[398090735,1765363887408,-500.0,0.0001589,2]
[398090736,1765363887417,-500.0,0.0001589,2]
[398090737,1765363887427,-500.0,0.0001589,2]
[398090738,1765363887437,-500.0,0.0001589,2]
[398090739,1765363887446,-947.85,0.0001589,2]
[398090740,1765363887455,-500.0,0.0001589,2]
[398090741,1765363887464,-500.0,0.0001589,2]
[398090742,1765363887474,-500.0,0.0001589,2]
[398090743,1765363887484,-500.0,0.0001589,2]
[398090744,1765363887495,-500.0,0.0001589,2]
[398090745,1765363887504,-500.0,0.0001589,2]
[398090746,1765363887513,-587.0,0.0001589,2]
[398090747,1765363887522,-500.0,0.0001589,2]
[398090748,1765363887531,-500.0,0.0001589,2]
[398090749,1765363887541,-500.0,0.0001589,2]
[398090750,1765363887550,-500.0,0.0001589,2]
[398090751,1765363887559,-500.0,0.0001589,2]
[398090752,1765363887568,-501.33,0.0001589,2]
[398090753,1765363887577,-500.0,0.0001589,2]
[398090754,1765363887586,-576.82,0.0001589,2]
[398090755,1765363887595,-500.0,0.0001589,2]
[398090756,1765363887606,-500.0,0.0001589,2]
[398090757,1765363887617,-500.0,0.0001589,2]
[398090758,1765363887626,-500.0,0.0001589,2]
[398090759,1765363887636,-500.0,0.0001589,2]
[398090760,1765363887647,-532.94,0.0001589,2]
[398090761,1765363887656,-526.76,0.0001589,2]
[398090762,1765363887665,-685.62,0.0001589,2]
[398090763,1765363887674,-500.0,0.0001589,2]
[398090764,1765363887683,-500.0,0.0001589,2]
[398090765,1765363887692,-778.96,0.0001589,2]
[398090766,1765363887701,-500.0,0.0001589,2]
[398090767,1765363887710,-500.0,0.0001589,2]
[398090768,1765363887719,-569.68541768,0.0001589,2]
[398090769,1765363887729,-500.0,0.0001589,2]
[398090770,1765363887738,-594.25,0.0001589,2]
[398090771,1765363887750,-500.0,0.0001589,2]
[398090772,1765363887759,-695.24,0.0001589,2]
[398090773,1765363887768,-500.0,0.0001589,2]
[398090774,1765363887778,-500.0,0.0001589,2]
[398090775,1765363887787,-500.0,0.0001589,2]
[398090776,1765363887796,-500.0,0.0001589,2]
[398090777,1765363887805,-500.0,0.0001589,2]
[398090778,1765363887815,-196.53431508,0.0001589,2]
[398090779,1765363887824,-571.54,0.0001589,2]
[398090780,1765363887834,-500.0,0.0001589,2]
[398090781,1765363887844,-500.0,0.0001589,2]
[398090782,1765363887853,-500.0,0.0001589,2]
[398090783,1765363887863,-500.0,0.0001589,2]
[398090784,1765363887872,-500.0,0.0001589,2]
[398090785,1765363887881,-537.71,0.0001589,2]
[398090786,1765363887891,-500.0,0.0001589,2]
[398090787,1765363887906,-500.0,0.0001589,2]
[398090788,1765363887916,-500.0,0.0001589,2]
[398090789,1765363887926,-526.55,0.0001589,2]
[398090790,1765363887935,-622.54,0.0001589,2]
[398090791,1765363887945,-500.0,0.0001589,2]
[398090792,1765363887954,-500.0,0.0001589,2]
[398090793,1765363887967,-569.43,0.0001589,2]
[398090794,1765363887976,-500.0,0.0001589,2]
[398090795,1765363887986,-500.0,0.0001589,2]
[398090796,1765363887997,-614.97,0.0001589,2]
[398090797,1765363888007,-500.0,0.0001589,2]